fUST/lending_fUST_20250525
["ID","MTS","AMOUNT","RATE_DAILY","PERIOD"]
[362282667,1748154647236,-430.0,0.00020273,2]
[362282668,1748154647246,-1266.89,0.00020273,2]
[362282669,1748154647255,-641.49,0.00020273,2]
[362282670,1748154647265,-1000.0,0.00020274,2]
[362282671,1748154647274,-1000.0,0.00020274,2]
[362282672,1748154647283,-151.0,0.00020275,2]
[362282673,1748154647293,-151.0,0.00020275,2]
[362282674,1748154647302,-151.0,0.00020275,2]
[362282675,1748154647311,-236.3289104,0.00020302,2]
[362282676,1748154647321,-300.499137,0.0002044,2]
[362282677,1748154647330,-151.0,0.0002044,2]
[362282678,1748154647340,-1000.0,0.00020452,2]
[362282679,1748154647350,-516.50162892,0.00020452,2]
[362282680,1748154647359,-151.0,0.00020547,2]
[362282681,1748154647368,-430.0,0.00020547,2]
[362282682,1748154647378,-430.0,0.00020547,2]
[362282683,1748154647387,-430.0,0.00020547,2]
[362282684,1748154647397,-430.0,0.00020547,2]
[362282685,1748154647406,-1007.16,0.00020547,2]
[362282686,1748154647416,-430.0,0.00020547,2]
[362282687,1748154647426,-509.03,0.00020547,2]
[362282688,1748154647435,-470.66,0.00020547,2]
[362282689,1748154647445,-430.0,0.00020547,2]
[362282690,1748154647454,-430.0,0.00020547,2]
[362282691,1748154647464,-430.0,0.00020547,2]
[362282692,1748154647474,-872.3,0.00020547,2]
[362282693,1748154647483,-430.0,0.00020547,2]
[362282694,1748154647493,-855.88,0.00020547,2]
[362282695,1748154647502,-430.0,0.00020547,2]
[362282696,1748154647511,-430.0,0.00020547,2]
[362282697,1748154647521,-151.0,0.00020547,2]
[362282698,1748154647531,-154.47113686,0.00020547,2]
[362282699,1748154647541,-430.0,0.00020547,2]
[362282700,1748154647550,-430.0,0.00020547,2]
[362282701,1748154647560,-151.0,0.00020547,2]
[362282702,1748154647569,-1311.18,0.00020547,2]
[362282703,1748154647580,-692.02,0.00020547,2]
[362282704,1748154647590,-430.0,0.00020547,2]
[362282705,1748154647599,-430.0,0.00020547,2]
[362282706,1748154647609,-716.46,0.00020547,2]
[362282707,1748154647618,-483.83,0.00020547,2]
[362282708,1748154647628,-1384.78,0.00020547,2]
[362282709,1748154647637,-430.0,0.00020547,2]
[362282710,1748154647647,-257.166971,0.00020547,2]
[362282711,1748154647656,-1786.64,0.00020547,2]
[362282712,1748154647665,-1072.98,0.00020547,2]
[362282713,1748154647674,-953.32,0.00020547,2]
[362282714,1748154647683,-257.166971,0.00020547,2]
[362282715,1748154647697,-430.0,0.00020547,2]
[362282716,1748154647706,-430.0,0.00020547,2]
[362282717,1748154647715,-430.0,0.00020547,2]
[362282718,1748154647724,-430.0,0.00020547,2]
[362282719,1748154647734,-629.5,0.00020547,2]
[362282720,1748154647744,-640.22,0.00020547,2]
[362282721,1748154647753,-836.67,0.00020547,2]
[362282722,1748154647762,-1266.89,0.00020547,2]
[362282723,1748154647774,-641.49,0.00020547,2]
[362282724,1748154647784,-362.032695,0.0002058,2]
[362282725,1748154647793,-151.0,0.00020584,2]
[362282726,1748154647802,-151.0,0.00020584,2]
[362282727,1748154647811,-151.0,0.00020584,2]
[362282728,1748154647820,-1000.0,0.00020584,2]
[362282729,1748154647830,-151.0,0.00020586,2]
[362282730,1748154647840,-151.0,0.00020586,2]
[362282731,1748154647849,-1000.0,0.00020587,2]
[362282732,1748154647860,-1000.0,0.00020587,2]
[362282733,1748154647869,-1000.0,0.00020587,2]
[362282734,1748154647879,-243.71121143,0.00020603,2]
[362282735,1748154647888,-215.0738,0.00020725,2]
[362282736,1748154647899,-295.8357616,0.00020759,2]
[362282737,1748154647909,-242.74640164,0.00020795,2]
[362282738,1748154647919,-151.0,0.00020821,2]
[362282739,1748154647929,-181.151436,0.00020821,2]
[362282740,1748154647938,-151.0,0.00020821,2]
[362282741,1748154647947,-151.0,0.00020821,2]
[362282742,1748154647956,-151.0,0.00020821,2]
[362282743,1748154647966,-430.0,0.00020821,2]
[362282744,1748154647976,-430.0,0.00020821,2]
[362282745,1748154647985,-430.0,0.00020821,2]
[362282746,1748154647995,-1007.16,0.00020821,2]
[362282747,1748154648005,-430.0,0.00020821,2]
[362282748,1748154648014,-509.03,0.00020821,2]
[362282749,1748154648024,-470.66,0.00020821,2]
[362282750,1748154648033,-430.0,0.00020821,2]
[362282751,1748154648043,-430.0,0.00020821,2]
[362282752,1748154648052,-872.3,0.00020821,2]
[362282753,1748154648061,-855.88,0.00020821,2]
[362282754,1748154648071,-430.0,0.00020821,2]
[362282755,1748154648080,-430.0,0.00020821,2]
[362282756,1748154648180,-430.0,0.00020821,2]
[362282757,1748154648190,-1311.18,0.00020821,2]
[362282758,1748154648200,-692.02,0.00020821,2]
[362282759,1748154648210,-430.0,0.00020821,2]
[362282760,1748154648220,-430.0,0.00020821,2]
[362282761,1748154648230,-716.46,0.00020821,2]
[362282762,1748154648240,-483.83,0.00020821,2]
[362282763,1748154648250,-1384.78,0.00020821,2]
[362282764,1748154648260,-430.0,0.00020821,2]
[362282765,1748154648271,-1786.64,0.00020821,2]
[362282766,1748154648280,-1072.98,0.00020821,2]
[362282767,1748154648290,-953.32,0.00020821,2]
[362282768,1748154648299,-430.0,0.00020821,2]
[362282769,1748154648309,-430.0,0.00020821,2]
[362282770,1748154648319,-430.0,0.00020821,2]
[362282771,1748154648329,-430.0,0.00020821,2]
[362282772,1748154648338,-629.5,0.00020821,2]
[362282773,1748154648348,-640.22,0.00020821,2]
[362282774,1748154648357,-836.67,0.00020821,2]
[362282775,1748154648367,-1266.89,0.00020821,2]
[362282776,1748154648377,-641.49,0.00020821,2]
[362282777,1748154648388,-507.82279802,0.00020822,2]
[362282778,1748154648398,-1012.88895778,0.00020822,2]
[362282779,1748154648407,-420.0,0.00020897,2]
[362282780,1748154648416,-420.0,0.00020898,2]
[362282781,1748154648426,-298.514428,0.00020899,2]
[362282782,1748154648436,-223.033632,0.00020899,2]
[362282783,1748154648445,-2000.0,0.00021,2]
[362282784,1748154648455,-1500.0,0.00021,2]
[362282785,1748154648464,-159.494132,0.00021036,3]
[362282786,1748154648474,-151.0,0.00021095,2]
[362282787,1748154648483,-151.0,0.00021095,2]
[362282788,1748154648493,-151.0,0.00021095,2]
[362282789,1748154648504,-151.0,0.00021095,2]
[362282790,1748154648514,-151.0,0.00021095,2]
[362282791,1748154648524,-430.0,0.00021095,2]
[362282792,1748154648534,-430.0,0.00021095,2]
[362282793,1748154648545,-166.0,0.00021095,2]
[362282794,1748154648555,-430.0,0.00021095,2]
[362282795,1748154648565,-1007.16,0.00021095,2]
[362282796,1748154648576,-430.0,0.00021095,2]
[362282797,1748154648586,-509.03,0.00021095,2]
[362282798,1748154648596,-470.66,0.00021095,2]
[362282799,1748154648606,-430.0,0.00021095,2]
[362282800,1748154648616,-430.0,0.00021095,2]
[362282801,1748154648626,-872.3,0.00021095,2]
[362282802,1748154648636,-392.64323803,0.00021095,2]
[362282803,1748154649055,-774.90751728,0.00019176,2]
[362282804,1748154649068,-750.90943522,0.00019176,2]
[362282805,1748154649078,-1525.8169525,0.00019176,2]
[362282806,1748154649088,-1525.8169525,0.00019176,2]
[362282807,1748154649098,-1525.8169525,0.00019176,2]
[362282808,1748154649107,-1525.8169525,0.00019176,2]
[362282809,1748154649117,-1525.8169525,0.00019176,2]
[362282810,1748154649127,-1525.8169525,0.00019176,2]
[362282811,1748154649137,-1525.8169525,0.00019176,2]
[362282812,1748154649147,-1525.8169525,0.00019176,2]
[362282813,1748154649156,-1525.8169525,0.00019176,2]
[362282814,1748154649166,-1525.8169525,0.00019176,2]
[362282815,1748154649175,-1525.8169525,0.00019176,2]
[362282816,1748154649184,-1525.8169525,0.00019176,2]
[362282817,1748154649193,-1525.8169525,0.00019176,2]
[362282818,1748154649203,-1525.8169525,0.00019176,2]
[362282819,1748154649212,-1525.8169525,0.00019176,2]
[362282820,1748154649221,-1525.8169525,0.00019176,2]
[362282821,1748154649231,-1525.8169525,0.00019176,2]
[362282822,1748154649241,-1525.8169525,0.00019176,2]
[362282823,1748154649250,-1525.8169525,0.00019176,2]
[362282824,1748154649261,-1525.8169525,0.00019176,2]
[362282825,1748154649271,-1525.8169525,0.00019176,2]
[362282826,1748154649280,-1525.8169525,0.00019176,2]
[362282827,1748154649289,-1525.8169525,0.00019176,2]
[362282828,1748154649299,-1525.8169525,0.00019176,2]
[362282829,1748154649308,-1525.8169525,0.00019176,2]
[362282830,1748154649318,-1525.8169525,0.00019176,2]
[362282831,1748154649327,-1525.8169525,0.00019176,2]
[362282832,1748154649337,-1525.8169525,0.00019176,2]
[362282833,1748154649346,-1525.8169525,0.00019176,2]
[362282834,1748154649356,-1525.8169525,0.00019176,2]
[362282835,1748154649366,-1525.8169525,0.00019176,2]
[362282836,1748154649375,-1525.8169525,0.00019176,2]
[362282837,1748154649385,-1525.8169525,0.00019176,2]
[362282838,1748154649394,-1525.8169525,0.00019176,2]
[362282839,1748154649404,-1525.8169525,0.00019176,2]
[362282840,1748154649414,-1525.8169525,0.00019176,2]
[362282841,1748154649424,-1525.8169525,0.00019176,2]
[362282842,1748154649434,-1525.8169525,0.00019176,2]
[362282843,1748154649444,-1525.8169525,0.00019176,2]
[362282844,1748154649453,-1525.8169525,0.00019176,2]
[362282845,1748154649462,-463.23676197,0.00021095,2]
[362282846,1748154649472,-430.0,0.00021095,2]
[362282847,1748154649481,-430.0,0.00021095,2]
[362282848,1748154649491,-430.0,0.00021095,2]
[362282849,1748154649501,-1311.18,0.00021095,2]
[362282850,1748154649510,-692.02,0.00021095,2]
[362282851,1748154649519,-430.0,0.00021095,2]
[362282852,1748154649528,-151.0,0.00021095,2]
[362282853,1748154649538,-430.0,0.00021095,2]
[362282854,1748154649548,-716.46,0.00021095,2]
[362282855,1748154649558,-483.83,0.00021095,2]
[362282856,1748154649568,-1384.78,0.00021095,2]
[362282857,1748154649578,-430.0,0.00021095,2]
[362282858,1748154649588,-257.166971,0.00021095,2]
[362282859,1748154649598,-1786.64,0.00021095,2]
[362282860,1748154649608,-1072.98,0.00021095,2]
[362282861,1748154649618,-953.32,0.00021095,2]
[362282862,1748154649627,-257.166971,0.00021095,2]
[362282863,1748154649637,-430.0,0.00021095,2]
[362282864,1748154649647,-430.0,0.00021095,2]
[362282865,1748154649658,-430.0,0.00021095,2]
[362282866,1748154649668,-151.0,0.00021095,2]
[362282867,1748154649678,-430.0,0.00021095,2]
[362282868,1748154649690,-629.5,0.00021095,2]
[362282869,1748154649705,-640.22,0.00021095,2]
[362282870,1748154649716,-836.67,0.00021095,2]
[362282871,1748154649729,-1266.89,0.00021095,2]
[362282872,1748154649739,-641.49,0.00021095,2]
[362282873,1748154649748,-507.27428843,0.00021132,2]
[362282874,1748154649758,-523.20016485,0.00021135,2]
[362282875,1748154649768,-513.19229648,0.00021135,2]
[362282876,1748154649777,-1510.2538317,0.00021135,2]
[362282877,1748154649787,-370.6656551,0.00021178,2]
[362282878,1748154649795,-363.8823352,0.00021178,2]
[362282879,1748154649805,-363.8823352,0.00021178,2]
[362282880,1748154649814,-328.496,0.00021276,2]
[362282881,1748154649823,-160.0,0.00021303,3]
[362282882,1748154649832,-212.55626673,0.00021303,2]
[362282883,1748154649842,-160.0,0.00021303,2]
[362282884,1748154649851,-160.0,0.00021303,2]
[362282885,1748154649860,-160.0,0.00021303,2]
[362282886,1748154649870,-160.0,0.00021303,2]
[362282887,1748154649879,-160.0,0.00021303,2]
[362282888,1748154649888,-160.0,0.00021303,2]
[362282889,1748154649898,-229.13142565,0.00021303,2]
[362282890,1748154649908,-362.38496218,0.00021303,2]
[362282891,1748154649917,-160.0,0.00021303,2]
[362282892,1748154649927,-423.00916439,0.00021304,2]
[362282893,1748154649940,-12652.24558203,0.00021304,2]
[362282894,1748154649951,-257.166971,0.00021304,2]
[362282895,1748154649960,-257.166971,0.00021304,2]
[362282896,1748154649970,-151.0,0.00021313,2]
[362282897,1748154649980,-243.473364,0.00021369,2]
[362282898,1748154649990,-151.0,0.00021369,2]
[362282899,1748154649999,-151.0,0.00021369,2]
[362282900,1748154650123,-151.0,0.00021369,2]
[362282901,1748154650134,-430.0,0.00021369,2]
[362282902,1748154650144,-430.0,0.00021369,2]
[362282903,1748154650153,-430.0,0.00021369,2]
[362282904,1748154650163,-430.0,0.00021369,2]
[362282905,1748154650172,-509.03,0.00021369,2]
[362282906,1748154650182,-470.66,0.00021369,2]
[362282907,1748154650191,-430.0,0.00021369,2]
[362282908,1748154650201,-430.0,0.00021369,2]
[362282909,1748154650210,-872.3,0.00021369,2]
[362282910,1748154650219,-855.88,0.00021369,2]
[362282911,1748154650229,-430.0,0.00021369,2]
[362282912,1748154650238,-430.0,0.00021369,2]
[362282913,1748154650248,-430.0,0.00021369,2]
[362282914,1748154650257,-1311.18,0.00021369,2]
[362282915,1748154650266,-692.02,0.00021369,2]
[362282916,1748154650275,-430.0,0.00021369,2]
[362282917,1748154650284,-430.0,0.00021369,2]
[362282918,1748154650294,-716.46,0.00021369,2]
[362282919,1748154650303,-483.83,0.00021369,2]
[362282920,1748154650313,-1384.78,0.00021369,2]
[362282921,1748154650322,-430.0,0.00021369,2]
[362282922,1748154650332,-1786.64,0.00021369,2]
[362282923,1748154650342,-1072.98,0.00021369,2]
[362282924,1748154650351,-953.32,0.00021369,2]
[362282925,1748154650361,-430.0,0.00021369,2]
[362282926,1748154650371,-430.0,0.00021369,2]
[362282927,1748154650382,-430.0,0.00021369,2]
[362282928,1748154650392,-430.0,0.00021369,2]
[362282929,1748154650403,-629.5,0.00021369,2]
[362282930,1748154650413,-640.22,0.00021369,2]
[362282931,1748154650423,-836.67,0.00021369,2]
[362282932,1748154650432,-1266.89,0.00021369,2]
[362282933,1748154650442,-641.49,0.00021369,2]
[362282934,1748154650452,-2000.0,0.000215,2]
[362282935,1748154650461,-500.0,0.000215,3]
[362282936,1748154650472,-2000.0,0.00021548,2]
[362282937,1748154650481,-295.8357616,0.00021568,2]
[362282938,1748154650491,-160.0,0.00021579,4]
[362282939,1748154650501,-639.0,0.000216,2]
[362282940,1748154650510,-500.0,0.00021609,2]
[362282941,1748154650520,-720.0,0.00021612,2]
[362282942,1748154650531,-720.0,0.00021612,2]
[362282943,1748154650540,-720.0,0.00021612,2]
[362282944,1748154650550,-294.09578819,0.00021612,2]
[362282945,1748154650560,-151.0,0.00021643,2]
[362282946,1748154650569,-151.0,0.00021643,2]
[362282947,1748154650579,-430.0,0.00021643,2]
[362282948,1748154650588,-430.0,0.00021643,2]
[362282949,1748154650597,-430.0,0.00021643,2]
[362282950,1748154650608,-430.0,0.00021643,2]
[362282951,1748154650617,-509.03,0.00021643,2]
[362282952,1748154650627,-470.66,0.00021643,2]
[362282953,1748154650637,-430.0,0.00021643,2]
[362282954,1748154650647,-430.0,0.00021643,2]
[362282955,1748154650657,-872.3,0.00021643,2]
[362282956,1748154650666,-855.88,0.00021643,2]
[362282957,1748154650676,-430.0,0.00021643,2]
[362282958,1748154650686,-430.0,0.00021643,2]
[362282959,1748154650696,-430.0,0.00021643,2]
[362282960,1748154650706,-1311.18,0.00021643,2]
[362282961,1748154650716,-692.02,0.00021643,2]
[362282962,1748154650725,-430.0,0.00021643,2]
[362282963,1748154650734,-151.0,0.00021643,2]
[362282964,1748154650744,-430.0,0.00021643,2]
[362282965,1748154650753,-716.46,0.00021643,2]
[362282966,1748154650763,-483.83,0.00021643,2]
[362282967,1748154650772,-1384.78,0.00021643,2]
[362282968,1748154650782,-430.0,0.00021643,2]
[362282969,1748154650791,-257.166971,0.00021643,2]
[362282970,1748154650801,-1786.64,0.00021643,2]
[362282971,1748154650810,-1072.98,0.00021643,2]
[362282972,1748154650819,-953.32,0.00021643,2]
[362282973,1748154650828,-257.166971,0.00021643,2]
[362282974,1748154650838,-430.0,0.00021643,2]
[362282975,1748154650850,-430.0,0.00021643,2]
[362282976,1748154650863,-435.61431554,0.00021643,2]
[362282977,1748154650873,-430.0,0.00021643,2]
[362282978,1748154650883,-629.5,0.00021643,2]
[362282979,1748154650893,-640.22,0.00021643,2]
[362282980,1748154650902,-836.67,0.00021643,2]
[362282981,1748154650911,-1266.89,0.00021643,2]
[362282982,1748154650921,-641.49,0.00021643,2]
[362282983,1748154650930,-800.0,0.00021666,2]
[362282984,1748154650939,-990.81,0.00021688,2]
[362282985,1748154650948,-151.0,0.00021694,2]
[362282986,1748154650958,-800.0,0.00021711,2]
[362282987,1748154650967,-800.0,0.00021727,2]
[362282988,1748154650977,-500.0,0.00021739,2]
[362282989,1748154650986,-500.0,0.00021739,2]
[362282990,1748154650995,-239.51221827,0.00021739,2]
[362282991,1748154651006,-500.0,0.00021739,2]
[362282992,1748154651015,-500.0,0.00021739,2]
[362282993,1748154651024,-500.0,0.00021739,2]
[362282994,1748154651033,-500.0,0.00021739,2]
[362282995,1748154651043,-621.48800661,0.00021739,2]
[362282996,1748154651052,-500.0,0.00021739,2]
[362282997,1748154651061,-500.0,0.00021739,2]
[362282998,1748154651070,-600.0,0.00021739,2]
[362282999,1748154651079,-500.0,0.00021739,2]
[362283000,1748154651089,-525.24527356,0.00021739,2]
[362283001,1748154651098,-500.0,0.00021739,2]
[362283002,1748154651107,-500.238027,0.00021739,2]
[362283003,1748154651117,-500.0,0.00021739,2]
[362283004,1748154651127,-500.363244,0.00021739,2]
[362283005,1748154651136,-500.0,0.00021739,2]
[362283006,1748154651146,-800.0,0.00021804,2]
[362283007,1748154651155,-805.07322107,0.00021835,2]
[362283008,1748154651165,-389.8333658,0.00021836,2]
[362283009,1748154651174,-203.1752953,0.00021836,2]
[362283010,1748154651184,-571.6513513,0.00021836,2]
[362283011,1748154651193,-158.2750078,0.00021836,2]
[362283012,1748154651203,-153.0,0.00021836,2]
[362283013,1748154651213,-158.2750078,0.00021836,2]
[362283014,1748154651223,-176.2038764,0.00021836,2]
[362283015,1748154651232,-571.6513513,0.00021836,2]
[362283016,1748154651242,-328.0,0.0002185,3]
[362283017,1748154651251,-160.0,0.00021855,5]
[362283018,1748154651260,-3000.0,0.000219,2]
[362283019,1748154651270,-151.0,0.000219,4]
[362283020,1748154651279,-3000.0,0.0002191,2]
[362283021,1748154651288,-306.22372947,0.00021917,2]
[362283022,1748154651298,-631.808674,0.00021917,2]
[362283023,1748154651307,-631.808674,0.00021917,2]
[362283024,1748154651317,-151.0,0.00021917,2]
[362283025,1748154651327,-182.464056,0.00021917,2]
[362283026,1748154651336,-182.464056,0.00021917,2]
[362283027,1748154651346,-241.616345,0.00021917,2]
[362283028,1748154651355,-151.0,0.00021917,2]
[362283029,1748154651364,-151.0,0.00021917,2]
[362283030,1748154651374,-151.0,0.00021917,2]
[362283031,1748154651384,-430.0,0.00021917,2]
[362283032,1748154651393,-430.0,0.00021917,2]
[362283033,1748154651402,-430.0,0.00021917,2]
[362283034,1748154651412,-338.55414476,0.00021917,2]
[362283035,1748154651421,-151.0,0.00021917,2]
[362283036,1748154651431,-206.13649662,0.00021917,2]
[362283037,1748154651440,-186.08456632,0.00021917,2]
[362283038,1748154651450,-156.03,0.00021917,2]
[362283039,1748154651459,-156.03,0.00021917,2]
[362283040,1748154651469,-156.03,0.00021917,2]
[362283041,1748154651478,-156.03,0.00021917,2]
[362283042,1748154651487,-156.03,0.00021917,2]
[362283043,1748154651496,-156.03,0.00021917,2]
[362283044,1748154651506,-156.03,0.00021917,2]
[362283045,1748154651515,-156.03,0.00021917,2]
[362283046,1748154651525,-156.03,0.00021917,2]
[362283047,1748154651534,-156.03,0.00021917,2]
[362283048,1748154651543,-156.03,0.00021917,2]
[362283049,1748154651553,-430.0,0.00021917,2]
[362283050,1748154651564,-430.0,0.00021917,2]
[362283051,1748154651573,-500.0,0.00021917,2]
[362283052,1748154651583,-500.0,0.00021917,2]
[362283053,1748154651593,-500.0,0.00021917,2]
[362283054,1748154651602,-500.0,0.00021917,2]
[362283055,1748154651611,-606.00117254,0.00021917,2]
[362283056,1748154651621,-509.03,0.00021917,2]
[362283057,1748154651631,-470.66,0.00021917,2]
[362283058,1748154651641,-430.0,0.00021917,2]
[362283059,1748154651651,-430.0,0.00021917,2]
[362283060,1748154651661,-872.3,0.00021917,2]
[362283061,1748154651670,-855.88,0.00021917,2]
[362283062,1748154651679,-430.0,0.00021917,2]
[362283063,1748154651691,-284.16656425,0.00021917,2]
[362283064,1748154651701,-430.0,0.00021917,2]
[362283065,1748154651712,-430.0,0.00021917,2]
[362283066,1748154651721,-1311.18,0.00021917,2]
[362283067,1748154651731,-692.02,0.00021917,2]
[362283068,1748154651742,-430.0,0.00021917,2]
[362283069,1748154651751,-430.0,0.00021917,2]
[362283070,1748154651760,-151.0,0.00021917,2]
[362283071,1748154651775,-716.46,0.00021917,2]
[362283072,1748154651785,-483.83,0.00021917,2]
[362283073,1748154651794,-1384.78,0.00021917,2]
[362283074,1748154651804,-1780.38,0.00021917,2]
[362283075,1748154651813,-430.0,0.00021917,2]
[362283076,1748154651823,-257.166971,0.00021917,2]
[362283077,1748154651834,-1786.64,0.00021917,2]
[362283078,1748154651844,-1072.98,0.00021917,2]
[362283079,1748154651853,-953.32,0.00021917,2]
[362283080,1748154651863,-257.166971,0.00021917,2]
[362283081,1748154651873,-430.0,0.00021917,2]
[362283082,1748154651883,-430.0,0.00021917,2]
[362283083,1748154651893,-430.0,0.00021917,2]
[362283084,1748154651903,-629.5,0.00021917,2]
[362283085,1748154651912,-640.22,0.00021917,2]
[362283086,1748154651922,-836.67,0.00021917,2]
[362283087,1748154651932,-1266.89,0.00021917,2]
[362283088,1748154652020,-641.49,0.00021917,2]
[362283089,1748154652030,-151.0,0.00021918,2]
[362283090,1748154652039,-151.0,0.00021918,2]
[362283091,1748154652049,-240.976126,0.00021918,2]
[362283092,1748154652058,-170.0,0.00021918,2]
[362283093,1748154652067,-170.0,0.00021918,2]
[362283094,1748154652077,-170.0,0.00021918,2]
[362283095,1748154652086,-170.0,0.00021918,2]
[362283096,1748154652096,-170.0,0.00021918,2]
[362283097,1748154652105,-174.30496669,0.00021918,2]
[362283098,1748154652115,-3000.0,0.0002192,2]
[362283099,1748154652124,-155.280093,0.0002192,7]
[362283100,1748154652133,-164.346072,0.0002192,7]
[362283101,1748154652142,-5000.0,0.00021922,2]
[362283102,1748154652151,-151.0,0.00021922,7]
[362283103,1748154652161,-3000.0,0.0002193,2]
[362283104,1748154652171,-3000.0,0.0002194,2]
[362283105,1748154652181,-257.166971,0.0002194,7]
[362283106,1748154652191,-257.166971,0.0002194,7]
[362283107,1748154652201,-3000.0,0.0002195,2]
[362283108,1748154652211,-3000.0,0.0002196,2]
[362283109,1748154652220,-151.0,0.0002196,7]
[362283110,1748154652229,-292.242093,0.0002196,7]
[362283111,1748154652239,-3000.0,0.0002197,2]
[362283112,1748154652248,-3000.0,0.0002198,2]
[362283113,1748154652258,-3000.0,0.0002199,2]
[362283114,1748154652267,-187.74168,0.0002199,2]
[362283115,1748154652276,-2046.82,0.00022,2]
[362283116,1748154652286,-310.38642614,0.00022,2]
[362283117,1748154652295,-3000.0,0.00022,2]
[362283118,1748154652305,-3000.0,0.0002201,2]
[362283119,1748154652315,-3000.0,0.0002202,2]
[362283120,1748154652325,-3000.0,0.0002203,2]
[362283121,1748154652335,-3000.0,0.0002204,2]
[362283122,1748154652344,-151.0,0.0002204,7]
[362283123,1748154652354,-3000.0,0.0002205,2]
[362283124,1748154652364,-631.808674,0.0002205,7]
[362283125,1748154652374,-631.808674,0.0002205,7]
[362283126,1748154652383,-182.464056,0.0002205,7]
[362283127,1748154652393,-182.464056,0.0002205,7]
[362283128,1748154652402,-257.166971,0.0002205,7]
[362283129,1748154652411,-257.166971,0.0002205,7]
[362283130,1748154652420,-3000.0,0.0002206,2]
[362283131,1748154652431,-151.0,0.0002206,7]
[362283132,1748154652440,-151.0,0.0002206,7]
[362283133,1748154652450,-900.0,0.00022064,2]
[362283134,1748154652459,-3000.0,0.0002207,2]
[362283135,1748154652469,-242.79342,0.0002207,7]
[362283136,1748154652479,-500.0,0.00022073,2]
[362283137,1748154652488,-500.0,0.00022073,2]
[362283138,1748154652498,-500.31599768,0.00022073,2]
[362283139,1748154652508,-500.0,0.00022073,2]
[362283140,1748154652517,-500.0,0.00022073,2]
[362283141,1748154652527,-500.4491607,0.00022073,2]
[362283142,1748154652536,-500.0,0.00022073,2]
[362283143,1748154652546,-500.0,0.00022073,2]
[362283144,1748154652555,-500.0,0.00022073,2]
[362283145,1748154652565,-500.0,0.00022073,2]
[362283146,1748154652575,-500.0,0.00022073,2]
[362283147,1748154652586,-500.0,0.00022073,2]
[362283148,1748154652596,-500.0,0.00022073,2]
[362283149,1748154652605,-500.0,0.00022073,2]
[362283150,1748154652614,-500.0,0.00022073,2]
[362283151,1748154652624,-500.0,0.00022073,2]
[362283152,1748154652633,-500.0,0.00022073,2]
[362283153,1748154652643,-3000.0,0.0002208,2]
[362283154,1748154652653,-500.4588953,0.00022083,2]
[362283155,1748154652662,-1000.124,0.00022088,2]
[362283156,1748154652671,-3000.0,0.0002209,2]
[362283157,1748154652681,-223.0315306,0.00022094,2]
[362283158,1748154652691,-2500.0,0.00022096,2]
[362283159,1748154652700,-3000.0,0.000221,2]
[362283160,1748154652709,-3000.0,0.0002211,2]
[362283161,1748154652719,-3000.0,0.0002212,2]
[362283162,1748154652728,-3000.0,0.0002213,2]
[362283163,1748154652738,-160.0,0.00022131,6]
[362283164,1748154652747,-3000.0,0.0002214,2]
[362283165,1748154652756,-3000.0,0.0002215,2]
[362283166,1748154652766,-151.0,0.0002215,7]